bitfinex/quotes_BTCUSD_20240611
["timestamp","ask_amount","ask_price","bid_price","bid_amount"]
[1718119656044,0.000946,66750.0,66749.0,0.1]
[1718119656461,0.000946,66750.0,66749.0,0.3]
[1718119658388,0.000946,66750.0,66749.0,0.449814]
[1718119659273,0.000946,66750.0,66749.0,0.59413393]
[1718119659482,0.000946,66750.0,66749.0,0.61713393]
[1718119659705,0.1,66768.0,66756.0,0.5]
[1718119659931,0.3956,66772.0,66757.0,0.1]
[1718119659932,0.1,66772.0,66757.0,0.1]
[1718119660160,0.11092183,66767.0,66757.0,0.1]
[1718119660366,0.1772,66777.0,66763.0,0.5]
[1718119660367,0.1,66773.0,66763.0,0.5]
[1718119660573,0.01092183,66766.0,66765.0,0.149779]
[1718119660792,0.1,66773.0,66766.0,0.1]
[1718119661011,0.1,66773.0,66766.0,0.249776]
[1718119661223,0.1,66775.0,66767.0,0.149774]
[1718119661446,0.1,66781.0,66767.0,0.149774]
[1718119661713,0.1,66773.0,66768.0,0.00075979]
[1718119661945,0.1,66773.0,66767.0,0.149774]
[1718119662157,0.1772,66772.0,66766.0,0.1]
[1718119662382,0.14431993,66771.0,66760.0,0.5022895]
[1718119662596,0.01092183,66771.0,66761.0,0.10599061]
[1718119662825,0.01092183,66771.0,66761.0,0.249787]
[1718119663246,0.01092183,66771.0,66762.0,0.149785]
[1718119663458,0.1,66773.0,66768.0,0.07215996]
[1718119663665,0.01092183,66770.0,66768.0,0.07215996]
[1718119663870,0.1,66773.0,66768.0,0.07215996]
[1718119664951,0.1,66773.0,66769.0,0.00599023]
[1718119665162,0.1,66773.0,66768.0,0.07215996]
[1718119666146,0.1,66774.0,66768.0,0.07215996]
[1718119667200,0.1,66776.0,66771.0,0.149764]
[1718119667403,0.1,66785.0,66775.0,0.57215996]
[1718119667604,0.1,66783.0,66775.0,0.57215996]
[1718119667814,0.1,66781.0,66777.0,0.149751]
[1718119668005,0.1,66783.0,66777.0,0.149751]
[1718119668206,0.1,66786.0,66777.0,0.149751]
[1718119668488,0.2672,66792.0,66778.0,0.00354655]
[1718119668489,0.1,66784.0,66778.0,0.00354655]
[1718119668696,0.1,66783.0,66776.0,0.1]
[1718119669143,0.1,66784.0,66782.0,0.07215996]
[1718119669618,0.43295979,66808.0,66783.0,0.84431993]
[1718119669820,0.43295979,66808.0,66797.0,0.07215996]
[1718119669821,0.1,66801.0,66797.0,0.07215996]
[1718119670034,0.1,66801.0,66797.0,0.149707]
[1718119670263,0.1,66801.0,66793.0,0.32416346]
[1718119671201,0.1,66801.0,66794.0,0.149713]
[1718119671621,0.1,66801.0,66795.0,0.1]
[1718119671847,0.2,66805.0,66795.0,0.1]
[1718119672073,0.1,66801.0,66795.0,0.1]
[1718119672693,0.1,66801.0,66793.0,0.17444946]
[1718119673125,0.1,66801.0,66799.0,0.149702]
[1718119673320,0.6017,66814.0,66799.0,0.149702]
[1718119673321,0.1,66805.0,66799.0,0.149702]
[1718119673753,0.01203493,66800.0,66799.0,0.149702]
[1718119674834,0.01203493,66800.0,66793.0,0.17444946]
[1718119674835,0.01203493,66800.0,66793.0,0.2520045]
[1718119675245,0.01203493,66800.0,66794.0,0.149713]
[1718119675467,0.01203493,66800.0,66795.0,0.1]
[1718119679654,0.01203493,66800.0,66793.0,0.19234129]
[1718119680066,0.01203493,66800.0,66793.0,0.19005179]
[1718119680459,0.15635486,66800.0,66793.0,0.19005179]
[1718119681507,0.35635486,66800.0,66793.0,0.19005179]
[1718119681714,0.15635486,66800.0,66793.0,0.19005179]
[1718119682379,0.2,66796.0,66793.0,0.11789183]
[1718119682595,0.11740445,66798.0,66793.0,0.01789183]
[1718119682596,0.2,66797.0,66793.0,0.01789183]
[1718119682805,0.11740445,66798.0,66793.0,0.01789183]
[1718119682806,0.01123848,66795.0,66793.0,0.01789183]
[1718119683046,0.01123848,66795.0,66789.0,0.07215996]
[1718119683480,0.01123848,66794.0,66789.0,0.1]
[1718119683697,0.2,66793.0,66789.0,0.17215996]
[1718119683910,0.01123848,66793.0,66789.0,0.17215996]
[1718119684601,0.1,66798.0,66789.0,0.07215996]
[1718119684883,0.01118608,66792.0,66790.0,0.1]
[1718119685118,0.1,66798.0,66790.0,0.1]
[1718119685552,0.01118608,66797.0,66790.0,0.1]
[1718119685788,0.01118608,66797.0,66796.0,0.22186896]
[1718119686009,0.000946,66800.0,66799.0,0.149702]
[1718119686436,0.1,66813.0,66801.0,0.5]
[1718119686652,0.1,66812.0,66809.0,0.149679]
[1718119686870,0.1,66812.0,66807.0,0.07215996]
[1718119688385,0.4718,66815.0,66807.0,0.07215996]
[1718119688386,0.4718,66815.0,66808.0,0.149682]
[1718119688609,0.009427,66817.0,66809.0,0.149679]
[1718119688862,0.009427,66817.0,66809.0,0.6503064]
[1718119689068,0.009427,66817.0,66809.0,0.53106982]
[1718119689275,0.009427,66817.0,66809.0,0.55606982]
[1718119689555,0.009427,66817.0,66809.0,0.03098647]
[1718119689978,0.009427,66817.0,66812.0,0.5]
[1718119690217,0.009427,66817.0,66814.0,0.02992]
[1718119690427,0.009427,66817.0,66812.0,0.6772]
[1718119690428,0.009427,66817.0,66816.0,0.179584]
[1718119690649,0.009427,66817.0,66816.0,0.1519535]
[1718119690882,0.009427,66817.0,66816.0,0.1022895]
[1718119691931,0.15374693,66817.0,66816.0,0.0022895]
[1718119692357,0.26393263,66817.0,66816.0,0.0022895]
[1718119692573,0.2,66816.0,66809.0,0.01789591]
[1718119692794,0.24431993,66815.0,66809.0,0.01789591]
[1718119693020,0.24431993,66815.0,66805.0,0.02712452]
[1718119693236,0.0101857,66814.0,66805.0,0.02712452]
[1718119693444,0.14431993,66813.0,66805.0,0.02712452]
[1718119693868,0.14431993,66813.0,66805.0,0.04503146]
[1718119694084,0.009427,66817.0,66805.0,0.04503146]
[1718119694085,0.0101857,66812.0,66811.0,0.174675]
[1718119694291,0.009427,66817.0,66816.0,0.149664]
[1718119694503,0.009427,66817.0,66816.0,0.1519535]
[1718119695819,0.1,66831.0,66820.0,0.149654]
[1718119696060,0.14431993,66830.0,66821.0,0.249652]
[1718119696277,0.14431993,66830.0,66823.0,0.149648]
[1718119696744,0.1,66831.0,66821.0,0.1]
[1718119696745,0.3706,66837.0,66824.0,0.10598503]
[1718119696990,0.1,66833.0,66826.0,0.149641]
[1718119697409,0.07215996,66827.0,66821.0,0.249652]
[1718119697662,0.14431993,66832.0,66821.0,0.249652]
[1718119697888,0.14431993,66832.0,66822.0,0.14965]
[1718119698120,0.109427,66838.0,66831.0,0.149629]
[1718119698361,0.1,66836.0,66831.0,0.149629]
[1718119699060,0.009427,66838.0,66831.0,0.149629]
[1718119699294,0.009427,66838.0,66837.0,0.149617]
[1718119700387,0.009427,66838.0,66832.0,0.1]
[1718119700647,0.08158696,66838.0,66832.0,0.1]
[1718119700882,0.14431993,66837.0,66832.0,0.1]
[1718119701099,0.14431993,66837.0,66830.0,0.0022895]
[1718119701327,0.34431993,66837.0,66830.0,0.0022895]
[1718119701763,0.00930727,66836.0,66830.0,0.0022895]
[1718119701990,0.14431993,66835.0,66830.0,0.0022895]
[1718119702675,0.00930727,66834.0,66830.0,0.0022895]
[1718119702898,0.07215996,66831.0,66830.0,0.0022895]
[1718119703109,0.21647989,66831.0,66830.0,0.0022895]
[1718119703539,0.22578716,66831.0,66830.0,0.0022895]
[1718119704869,0.1536272,66831.0,66830.0,0.0022895]
[1718119705080,0.1536272,66831.0,66830.0,0.02019397]
[1718119705517,0.1536272,66831.0,66830.0,0.0022895]
[1718119706597,0.37103165,66831.0,66830.0,0.0022895]
[1718119706800,0.1536272,66831.0,66830.0,0.0022895]
[1718119707661,0.37103165,66831.0,66830.0,0.0022895]
[1718119708275,0.2,66830.0,66821.0,0.01806249]
[1718119708501,0.2,66828.0,66821.0,0.01806249]
[1718119708768,0.2,66828.0,66818.0,0.0022895]
[1718119708769,0.2,66824.0,66818.0,0.0022895]
[1718119709007,0.21740445,66821.0,66820.0,0.01833193]
[1718119709268,0.2,66820.0,66818.0,0.0022895]
[1718119709480,0.34431993,66819.0,66818.0,0.01984188]
[1718119709697,0.46172438,66819.0,66818.0,0.0022895]
[1718119709909,0.47098857,66819.0,66818.0,0.0022895]
[1718119710353,0.45358412,66819.0,66804.0,0.149691]
[1718119710575,0.2,66816.0,66804.0,0.149691]
[1718119710789,0.14431993,66815.0,66805.0,0.26279605]
[1718119711014,0.14431993,66815.0,66806.0,0.1]
[1718119711223,0.00926419,66814.0,66807.0,0.26279605]
[1718119711445,0.00926419,66814.0,66806.0,0.1]
[1718119711446,0.14431993,66813.0,66808.0,0.36279605]
[1718119711659,0.14431993,66813.0,66809.0,0.1]
[1718119711892,0.14431993,66813.0,66806.0,0.1]
[1718119712107,0.00926419,66812.0,66806.0,0.1]
[1718119712335,0.00926419,66812.0,66807.0,0.25857785]
[1718119712598,0.00926419,66812.0,66808.0,0.1]
[1718119712599,0.15358412,66812.0,66808.0,0.1]
[1718119712795,0.48808412,66812.0,66808.0,0.1]
[1718119713003,0.68808412,66812.0,66808.0,0.1]
[1718119713222,0.48808412,66812.0,66808.0,0.1]
[1718119713658,0.48808412,66812.0,66804.0,0.149691]
[1718119713659,0.48808412,66812.0,66805.0,0.1]
[1718119714317,0.48808412,66812.0,66806.0,0.26103503]
[1718119714523,0.48808412,66812.0,66807.0,0.1]
[1718119714731,0.68808412,66812.0,66807.0,0.1]
[1718119715422,0.68808412,66812.0,66803.0,0.01777104]
[1718119715423,0.3,66804.0,66803.0,0.01777104]
[1718119715629,0.2,66802.0,66796.0,0.01343575]
[1718119715861,0.2,66799.0,66797.0,0.29213328]
[1718119716081,0.19490445,66800.0,66797.0,0.29213328]
[1718119716082,0.36172438,66798.0,66797.0,0.29213328]
[1718119716288,0.21740445,66797.0,66796.0,0.01343575]
[1718119716528,0.36172438,66797.0,66796.0,0.01343575]
[1718119716744,0.14431993,66797.0,66796.0,0.01343575]
[1718119716954,0.15358412,66797.0,66796.0,0.03153538]
[1718119717167,0.15358412,66797.0,66796.0,0.01343575]
[1718119717801,0.15358412,66797.0,66796.0,0.01429575]
[1718119718683,0.00926419,66797.0,66796.0,0.01429575]
[1718119718897,0.00926419,66797.0,66796.0,0.00086]
[1718119719136,0.1,66802.0,66796.0,0.00086]
[1718119719348,0.15342197,66801.0,66797.0,0.27218442]
[1718119720176,0.15342197,66801.0,66797.0,0.49198442]
[1718119720422,0.15342197,66801.0,66798.0,0.27218442]
[1718119720617,0.15342197,66801.0,66799.0,0.27218442]
[1718119720859,0.14431993,66801.0,66796.0,0.09766]
[1718119721181,0.00910204,66800.0,66797.0,0.25603111]
[1718119721573,0.14431993,66801.0,66796.0,0.00086]
[1718119721796,0.14431993,66801.0,66797.0,0.26621319]
[1718119722003,0.00910204,66800.0,66796.0,0.00086]
[1718119722207,0.14431993,66801.0,66797.0,0.26657504]
[1718119722413,0.00910204,66799.0,66797.0,0.26657504]
[1718119722620,0.14431993,66801.0,66797.0,0.26657504]
[1718119724649,0.1,66802.0,66797.0,0.41628004]
[1718119724850,0.1,66802.0,66798.0,0.00598733]
[1718119725443,0.1,66812.0,66798.0,0.1]
[1718119725652,0.5063,66814.0,66796.0,0.00086]
[1718119725653,0.1,66810.0,66803.0,0.149693]
[1718119725861,0.24431993,66810.0,66804.0,0.36748885]
[1718119726059,0.24431993,66810.0,66805.0,0.26748885]
[1718119726356,0.00910204,66809.0,66806.0,0.26748885]
[1718119726537,0.00910204,66809.0,66804.0,0.249691]
[1718119726787,0.00910204,66809.0,66805.0,0.27591447]
[1718119726987,0.00910204,66809.0,66806.0,0.27591447]
[1718119727215,0.00910204,66809.0,66804.0,0.249691]
[1718119727403,0.00910204,66809.0,66805.0,0.27411458]
[1718119727630,0.34431993,66808.0,66805.0,0.27411458]
[1718119727831,0.34431993,66808.0,66804.0,0.1]
[1718119728063,0.34431993,66808.0,66799.0,0.1]
[1718119728276,0.00910204,66807.0,66797.0,0.1]
[1718119728481,0.14431993,66806.0,66796.0,0.16863061]
[1718119728677,0.14431993,66806.0,66797.0,0.249707]
[1718119729032,0.00910204,66805.0,66797.0,0.249707]
[1718119729236,0.14431993,66804.0,66798.0,0.149704]
[1718119729436,0.14431993,66804.0,66799.0,0.1]
[1718119730059,0.00910204,66803.0,66799.0,0.1]
[1718119730675,0.14431993,66804.0,66799.0,0.249701]
[1718119730948,0.1,66810.0,66799.0,0.249701]
[1718119731135,0.00910204,66803.0,66799.0,0.1]
[1718119731276,0.1,66812.0,66808.0,0.14968]
[1718119731657,0.00910204,66811.0,66808.0,0.14968]
[1718119732088,0.10910204,66811.0,66808.0,0.14968]
[1718119732307,0.00910204,66811.0,66808.0,0.14968]
[1718119740408,0.1,66812.0,66808.0,0.14968]
[1718119740646,0.00916511,66810.0,66808.0,0.14968]
[1718119740850,0.1,66812.0,66808.0,0.14968]
[1718119741071,0.5063,66814.0,66808.0,0.14968]
[1718119741277,0.1,66812.0,66808.0,0.14968]
[1718119741502,0.00916511,66811.0,66808.0,0.14968]
[1718119746198,0.00916511,66811.0,66808.0,0.1943488]
[1718119746405,0.00916511,66811.0,66808.0,0.22194872]
[1718119746616,0.14431993,66810.0,66808.0,0.0446688]
[1718119746874,0.14431993,66810.0,66803.0,0.111672]
[1718119746875,0.14431993,66810.0,66805.0,0.0446688]
[1718119747180,0.14431993,66810.0,66803.0,0.0670032]
[1718119747181,0.14431993,66810.0,66806.0,0.01786997]
[1718119747340,0.00916511,66809.0,66804.0,0.1446688]
[1718119747564,0.00916511,66809.0,66804.0,0.1]
[1718119747565,0.14431993,66808.0,66804.0,0.1]
[1718119748045,0.00916511,66807.0,66804.0,0.3217688]
[1718119748284,0.15348504,66807.0,66805.0,0.1446688]
[1718119748488,0.1,66812.0,66805.0,0.1893376]
[1718119748708,0.1,66812.0,66809.0,0.04474332]
[1718119749122,0.00916511,66811.0,66809.0,0.04474332]
[1718119749343,0.00916511,66811.0,66810.0,0.04475329]
[1718119749556,0.1,66812.0,66810.0,0.04475329]
[1718119749981,0.1,66812.0,66811.0,0.04475329]
[1718119750774,0.10915429,66812.0,66811.0,0.04475329]
[1718119751181,0.10915429,66812.0,66810.0,0.06712994]
[1718119751405,0.1,66812.0,66810.0,0.06712994]
[1718119752375,0.100946,66812.0,66811.0,0.06712994]
[1718119752695,0.11010029,66812.0,66811.0,0.06712994]
[1718119754022,0.47182467,66812.0,66811.0,0.06712994]
[1718119754234,1.01022467,66812.0,66811.0,0.06712994]
[1718119754453,0.2,66810.0,66808.0,0.04479421]
[1718119754651,0.14431993,66809.0,66808.0,0.04479421]
[1718119754864,0.36172438,66809.0,66808.0,0.04479421]
[1718119755085,0.37087867,66809.0,66807.0,0.04479421]
[1718119755297,0.20740445,66808.0,66806.0,0.04479421]
[1718119755500,0.16347422,66809.0,66806.0,0.04479421]
[1718119755501,0.14413976,66807.0,66806.0,0.04479421]
[1718119755938,0.15329405,66807.0,66806.0,0.04479421]
[1718119756371,0.15329405,66807.0,66805.0,0.16712994]
[1718119756576,0.15329405,66807.0,66806.0,0.06712994]
[1718119756780,0.15329405,66807.0,66805.0,0.18950659]
[1718119757193,0.15329405,66807.0,66806.0,0.06721129]
[1718119757506,0.15329405,66807.0,66805.0,0.18950659]
[1718119757923,0.15329405,66807.0,66806.0,0.08950659]
[1718119758751,0.15329405,66807.0,66805.0,0.21188324]
[1718119758960,0.15329405,66807.0,66806.0,0.11188324]
[1718119759162,0.15329405,66807.0,66806.0,0.21188324]
[1718119760127,0.00915429,66807.0,66806.0,0.21188324]
[1718119760329,0.00915429,66807.0,66806.0,0.33868324]
[1718119760533,0.000946,66812.0,66811.0,0.149675]
[1718119760863,0.4412,66827.0,66822.0,0.149649]
[1718119760987,0.1,66831.0,66826.0,0.0671938]
[1718119761187,0.25255731,66830.0,66828.0,0.04479436]
[1718119761429,0.25255731,66830.0,66828.0,0.0671938]
[1718119761638,0.25255731,66830.0,66829.0,0.04477582]
[1718119762489,0.25255731,66830.0,66825.0,0.14477582]
[1718119762698,0.25255731,66830.0,66824.0,0.14477582]
[1718119762911,0.15255731,66830.0,66824.0,0.04477582]
[1718119763126,0.25255731,66830.0,66825.0,0.04477582]
[1718119763330,0.15255731,66830.0,66828.0,0.04477582]
[1718119763539,0.25255731,66830.0,66827.0,0.04477582]
[1718119763955,0.25255731,66830.0,66828.0,0.04477582]
[1718119764162,0.15255731,66830.0,66828.0,0.04477582]
[1718119764370,0.15255731,66830.0,66829.0,0.149635]
[1718119764821,0.00823738,66830.0,66829.0,0.26162467]
[1718119765047,0.00823738,66830.0,66829.0,0.36162467]
[1718119765276,0.262627,66838.0,66829.0,0.1]
[1718119765489,0.14431993,66836.0,66834.0,0.04473924]
[1718119765695,0.15267414,66836.0,66834.0,0.06710886]
[1718119766163,0.15267414,66836.0,66835.0,0.149622]
[1718119766400,0.15267414,66836.0,66835.0,0.19434225]
[1718119766821,0.15267414,66836.0,66835.0,0.149622]
[1718119769775,0.00835421,66836.0,66835.0,0.149622]
[1718119769984,0.00835421,66836.0,66835.0,0.249622]
[1718119770202,0.00223521,66836.0,66835.0,0.249622]
[1718119770410,0.00223521,66836.0,66835.0,0.31665763]
[1718119770411,0.00774231,66836.0,66835.0,0.31665763]
[1718119770618,0.009427,66838.0,66836.0,0.149619]
[1718119771028,0.009427,66838.0,66836.0,0.31665463]
[1718119771236,0.009427,66838.0,66836.0,0.29427908]
[1718119773558,0.009427,66838.0,66836.0,0.249619]
[1718119774638,0.00879769,66837.0,66836.0,0.249619]
[1718119774847,0.000946,66837.0,66836.0,0.249619]
[1718119775260,0.00879769,66837.0,66836.0,0.249619]
[1718119775881,0.000946,66837.0,66836.0,0.26762198]
[1718119778973,0.000946,66837.0,66836.0,0.29486346]
[1718119781062,0.000946,66837.0,66836.0,0.59410246]
[1718119781484,0.000946,66837.0,66836.0,0.29486346]
[1718119782037,0.000946,66837.0,66836.0,0.30429046]
[1718119782237,0.14526593,66837.0,66836.0,0.30429046]
[1718119782438,0.57486593,66837.0,66836.0,0.14524446]
[1718119782640,0.58271762,66837.0,66836.0,0.14524446]
[1718119783501,1.00012207,66837.0,66836.0,0.01800298]
[1718119783899,0.4,66834.0,66832.0,0.0001833]
[1718119784115,0.14431993,66833.0,66832.0,0.0001833]
[1718119784317,0.24431993,66833.0,66832.0,0.0001833]
[1718119784523,0.25217162,66833.0,66832.0,0.0001833]
[1718119784734,0.45217162,66833.0,66832.0,0.0001833]
[1718119784945,0.76467607,66833.0,66832.0,0.0001833]
[1718119785156,0.91577607,66833.0,66832.0,0.0001833]
[1718119785773,0.91577607,66833.0,66832.0,0.01849658]
[1718119785976,0.91577607,66833.0,66832.0,0.0001833]
[1718119790969,0.91577607,66833.0,66832.0,0.23376441]
[1718119791954,0.89837162,66833.0,66832.0,0.23376441]
[1718119792181,0.69837162,66833.0,66832.0,0.23376441]
[1718119796671,0.89837162,66833.0,66832.0,0.23376441]
[1718119796886,0.69837162,66833.0,66832.0,0.23376441]
[1718119801340,0.91577607,66833.0,66832.0,0.23376441]
[1718119801775,0.69837162,66833.0,66832.0,0.0001833]
[1718119802217,0.69837162,66833.0,66832.0,0.20623523]
[1718119804225,0.00785169,66833.0,66832.0,0.20623523]
[1718119804487,0.000946,66837.0,66832.0,0.40193523]
[1718119804710,0.000946,66837.0,66836.0,0.08946862]
[1718119804918,0.000946,66837.0,66836.0,0.20605193]
[1718119805124,0.000946,66837.0,66836.0,0.45567093]
[1718119808029,0.14526593,66837.0,66836.0,0.45567093]
[1718119808269,0.57066593,66837.0,66836.0,0.45567093]
[1718119808482,0.57066593,66837.0,66836.0,0.5004412]
[1718119808697,0.57066593,66837.0,66836.0,0.45567093]
[1718119808907,0.57066593,66837.0,66836.0,0.52282449]
[1718119809324,0.57066593,66837.0,66836.0,0.45567093]
[1718119810168,0.57066593,66837.0,66836.0,0.45585422]
[1718119811282,0.14526593,66837.0,66836.0,0.45585422]
[1718119811507,0.14526593,66837.0,66836.0,0.56777682]
[1718119811965,0.14526593,66837.0,66836.0,0.56779157]
[1718119812191,0.14526593,66837.0,66836.0,0.45585422]
[1718119812446,0.71587038,66837.0,66836.0,0.42172123]
[1718119812681,0.99257038,66837.0,66836.0,0.42172123]
[1718119812932,0.99257038,66837.0,66827.0,0.01824502]
[1718119812933,0.5632,66828.0,66827.0,0.01824502]
[1718119813164,0.5632,66828.0,66820.0,0.11193735]
[1718119813165,0.21690445,66823.0,66821.0,0.04477997]
[1718119813412,0.2,66820.0,66817.0,0.04477997]
[1718119813635,0.14431993,66819.0,66818.0,0.2147138]
[1718119814519,0.14431993,66819.0,66817.0,0.2147138]
[1718119814762,0.1419,66818.0,66817.0,0.2147138]
[1718119814984,0.60312438,66818.0,66817.0,0.2147138]
[1718119815202,0.21690445,66816.0,66815.0,0.04477997]
[1718119815417,0.51550445,66815.0,66814.0,0.01760353]
[1718119815633,0.64291993,66815.0,66814.0,0.2591529]
[1718119815847,0.64291993,66815.0,66809.0,0.04477997]
[1718119815848,0.21690445,66812.0,66809.0,0.04477997]
[1718119816018,0.2,66810.0,66809.0,0.04477997]
[1718119816250,0.34431993,66810.0,66809.0,0.04477997]
[1718119816497,0.14431993,66810.0,66809.0,0.34843902]
[1718119816740,0.14431993,66810.0,66809.0,0.34436274]
[1718119816963,0.14431993,66810.0,66809.0,0.37112885]
[1718119817220,0.14431993,66810.0,66809.0,0.34436274]
[1718119817671,0.15268166,66810.0,66809.0,0.34436274]
[1718119817910,0.35268166,66810.0,66809.0,0.36224095]
[1718119818139,0.15268166,66810.0,66809.0,0.36224095]
[1718119818603,0.15268166,66810.0,66809.0,0.36309095]
[1718119819277,0.15268166,66810.0,66809.0,0.40780562]
[1718119821397,0.15268166,66810.0,66809.0,0.36309095]
[1718119821773,1.18648611,66810.0,66809.0,0.26309095]
[1718119821981,1.33616411,66810.0,66809.0,0.00085]
[1718119822808,1.15866411,66810.0,66809.0,0.00085]
[1718119823037,0.15268166,66810.0,66809.0,0.00085]
[1718119823264,0.15268166,66810.0,66809.0,0.15053]
[1718119823973,0.15268166,66810.0,66809.0,0.25053]
[1718119825599,0.36958611,66810.0,66809.0,0.25053]
[1718119825825,0.36958611,66810.0,66809.0,0.10085]
[1718119826030,0.36958611,66810.0,66809.0,0.00085]
[1718119826232,0.36958611,66810.0,66809.0,0.10085]
[1718119827303,0.36958611,66810.0,66809.0,0.00085]
[1718119827304,0.15268166,66810.0,66809.0,0.00085]
[1718119828398,0.36958611,66810.0,66809.0,0.00085]
[1718119829246,0.36958611,66810.0,66809.0,0.01922807]
[1718119829464,0.36958611,66810.0,66809.0,0.00085]
[1718119830572,0.56958611,66810.0,66809.0,0.00085]
[1718119830780,0.72088611,66810.0,66809.0,0.00085]
[1718119831015,1.02918611,66810.0,66809.0,0.00085]
[1718119832563,1.17886411,66810.0,66809.0,0.00085]
[1718119836809,1.02918611,66810.0,66809.0,0.00085]
[1718119839844,1.03918611,66810.0,66809.0,0.00085]
[1718119840899,1.02918611,66810.0,66809.0,0.00085]
[1718119841319,0.71228166,66810.0,66809.0,0.00085]
[1718119841786,0.81228166,66810.0,66809.0,0.00085]
[1718119842220,1.02918611,66810.0,66809.0,0.00085]
[1718119842665,1.02918611,66810.0,66809.0,0.00055387]
[1718119842666,1.01228166,66810.0,66809.0,0.00055387]
[1718119842912,1.02918611,66810.0,66809.0,0.00055387]
[1718119845430,1.01228166,66810.0,66809.0,0.00055387]
[1718119845603,1.02918611,66810.0,66809.0,0.00055387]
[1718119845987,1.01228166,66810.0,66809.0,0.00055387]
[1718119846196,1.02918611,66810.0,66809.0,0.00055387]
[1718119846401,1.01228166,66810.0,66809.0,0.00055387]
[1718119847156,0.71228166,66810.0,66809.0,0.00055387]
[1718119847377,0.81228166,66810.0,66809.0,0.00055387]
[1718119847607,1.02918611,66810.0,66809.0,0.00055387]
[1718119848911,0.81228166,66810.0,66809.0,0.00055387]
[1718119849664,1.02918611,66810.0,66809.0,0.00025687]
[1718119852720,1.02918611,66810.0,66809.0,0.08589631]
[1718119853339,1.02918611,66810.0,66809.0,0.00025687]
[1718119855885,1.36636411,66810.0,66809.0,0.00025687]
[1718119857016,1.25986411,66810.0,66809.0,0.00025687]
[1718119859143,1.36646411,66810.0,66809.0,0.00025687]
[1718119860087,0.87210445,66804.0,66803.0,0.01863847]
[1718119860336,0.56781993,66804.0,66803.0,0.01863847]
[1718119860577,0.25230527,66804.0,66803.0,0.27383847]
[1718119861054,0.46920972,66804.0,66803.0,0.27383847]
[1718119861274,0.46920972,66804.0,66803.0,0.01863847]
[1718119861506,0.46920972,66804.0,66803.0,0.08587249]
[1718119861734,0.56920972,66804.0,66803.0,0.08587249]
[1718119862005,1.00850972,66804.0,66803.0,0.01863847]
[1718119862464,1.01850972,66804.0,66803.0,0.01863847]
[1718119862702,1.00850972,66804.0,66803.0,0.01863847]
[1718119862944,1.15820072,66804.0,66803.0,0.00056381]
[1718119863424,1.16820072,66804.0,66803.0,0.00056381]
[1718119863900,1.15820072,66804.0,66803.0,0.00056381]
[1718119864366,1.16820072,66804.0,66803.0,0.00056381]
[1718119864833,1.15820072,66804.0,66803.0,0.00056381]
[1718119866135,0.55230527,66804.0,66803.0,0.00056381]
[1718119866350,0.25230527,66804.0,66803.0,0.00056381]
[1718119866557,0.25230527,66804.0,66803.0,0.29596381]
[1718119866766,0.46920972,66804.0,66803.0,0.25576381]
[1718119866983,0.56122438,66804.0,66803.0,0.06778558]
[1718119867194,0.25219861,66804.0,66803.0,0.06778558]
[1718119867409,0.35219861,66804.0,66803.0,0.06778558]
[1718119867628,0.35219861,66804.0,66803.0,0.06779001]
[1718119868046,0.55219861,66804.0,66803.0,0.06779001]
[1718119868251,0.35219861,66804.0,66803.0,0.00056381]
[1718119868515,0.25219861,66804.0,66803.0,0.00056381]
[1718119868765,0.00787868,66804.0,66803.0,0.29646381]
[1718119868992,0.1,66813.0,66811.0,0.03960801]
[1718119869240,0.1,66826.0,66814.0,0.0005]
[1718119869457,0.14431993,66825.0,66824.0,0.04480811]
[1718119869686,0.14431993,66825.0,66823.0,0.099703]
[1718119869918,0.46122438,66825.0,66824.0,0.08961111]
[1718119870152,0.41690445,66824.0,66823.0,0.0672105]
[1718119870371,0.1,66823.0,66822.0,0.04479247]
[1718119870580,0.24431993,66823.0,66822.0,0.19444347]
[1718119870794,0.14431993,66823.0,66822.0,0.2173615]
[1718119871009,0.14431993,66823.0,66822.0,0.150151]
[1718119871232,0.14431993,66823.0,66822.0,0.49489978]
[1718119871453,0.000946,66828.0,66827.0,0.0005]
[1718119871669,0.14526593,66828.0,66827.0,0.09004274]
[1718119871881,0.000946,66828.0,66827.0,0.0005]
[1718119872139,0.000946,66828.0,66827.0,0.18974]
[1718119872394,0.00093501,66836.0,66833.0,0.0005]
[1718119872632,0.1,66834.0,66833.0,0.06710347]
[1718119872863,0.14431993,66834.0,66833.0,0.06760347]
[1718119873115,0.14431993,66834.0,66833.0,0.06760351]
[1718119873344,0.14431993,66834.0,66833.0,0.04520855]
[1718119873841,0.00093501,66836.0,66835.0,0.0005]
[1718119874071,0.14525494,66836.0,66835.0,0.2557]
[1718119874293,0.14525494,66836.0,66835.0,0.3557]
[1718119874749,0.00828585,66836.0,66835.0,0.3557]
[1718119874975,0.00828585,66836.0,66835.0,0.40040593]
[1718119875203,0.00093501,66837.0,66835.0,0.43326892]
[1718119875423,0.3886,66855.0,66850.0,0.0005]
[1718119875424,0.1,66853.0,66850.0,0.0005]
[1718119875641,0.24431993,66852.0,66851.0,0.0005]
[1718119875855,0.25167077,66852.0,66850.0,0.2557]
[1718119876068,0.17215996,66851.0,66846.0,0.04464296]
[1718119876307,0.24431993,66850.0,66846.0,0.14464296]
[1718119876516,0.2,66849.0,66846.0,0.1]
[1718119876729,0.21690445,66847.0,66846.0,0.1]
[1718119876951,0.14431993,66847.0,66846.0,0.1]
[1718119877389,0.14431993,66847.0,66839.0,0.150112]
[1718119877390,0.2,66846.0,66840.0,0.1]
[1718119877615,0.2,66841.0,66840.0,0.1]
[1718119877839,0.2,66841.0,66836.0,0.01215697]
[1718119877840,0.14431993,66841.0,66836.0,0.01215697]
[1718119878053,0.14431993,66840.0,66836.0,0.01215697]
[1718119878687,0.00735084,66839.0,66836.0,0.01215697]
[1718119878916,0.2,66837.0,66836.0,0.01215697]
[1718119879128,0.36122438,66837.0,66836.0,0.0305298]
[1718119879336,0.14431993,66837.0,66836.0,0.01215697]
[1718119879553,0.15167077,66837.0,66836.0,0.01215697]
[1718119879817,0.35167077,66837.0,66836.0,0.01185997]
[1718119880039,0.15167077,66837.0,66836.0,0.01185997]
[1718119881547,0.15167077,66837.0,66836.0,0.01235997]
[1718119881984,0.15167077,66837.0,66836.0,0.01185997]
[1718119882611,0.00735084,66837.0,66836.0,0.01235997]
[1718119882826,0.00735084,66837.0,66836.0,0.11235997]
[1718119883054,0.1,66840.0,66839.0,0.0005]